bitfinex/quotes_ETHUSD_20241106
["timestamp","ask_amount","ask_price","bid_price","bid_amount"]
[1730886641512,0.7912,2620.0,2619.1,3.0]
[1730886641846,3.81752,2619.5,2619.1,3.0]
[1730886642437,7.63515,2619.5,2619.0,4.63162]
[1730886642613,3.81752,2619.5,2619.0,4.63162]
[1730886643014,7.63516,2619.5,2619.0,4.63162]
[1730886643418,3.81738,2619.6,2619.1,0.07635497]
[1730886643602,3.81703,2619.9,2619.2,3.81795]
[1730886643803,0.460823,2619.8,2619.0,4.63156]
[1730886644011,3.81764,2619.5,2619.0,4.63156]
[1730886644209,3.8167,2620.1,2619.0,3.8134]
[1730886644210,3.81723,2619.7,2619.0,3.8134]
[1730886644451,3.81789,2619.3,2619.0,0.8134]
[1730886644814,3.81789,2619.3,2619.0,3.8134]
[1730886645013,3.818,2619.2,2618.8,3.0]
[1730886645317,3.81818,2619.1,2618.8,0.7843]
[1730886645522,3.81782,2619.3,2618.8,4.60272]
[1730886645912,3.81797,2619.2,2618.8,4.60272]
[1730886646859,3.81782,2619.3,2618.8,8.42115]
[1730886647053,3.81767,2619.4,2618.9,0.08381122]
[1730886647345,3.81768,2619.4,2618.9,0.08381122]
[1730886647682,3.81768,2619.4,2618.9,3.90214122]
[1730886647853,7.63547,2619.4,2618.9,3.90214122]
[1730886648250,3.81788,2619.3,2618.9,0.08381122]
[1730886648450,4.61643,2619.7,2619.0,3.81823]
[1730886648754,3.81743,2619.6,2619.1,4.69429667]
[1730886649309,3.81773,2619.4,2619.1,0.87626667]
[1730886649533,3.81773,2619.4,2619.1,0.08376667]
[1730886649534,3.81766,2619.4,2619.1,0.08376667]
[1730886649738,3.81766,2619.4,2618.9,7.61089]
[1730886649951,3.81754,2619.5,2619.0,3.81823]
[1730886650141,3.81739,2619.6,2619.0,3.90205111]
[1730886650326,3.81739,2619.6,2619.1,3.81802]
[1730886650521,3.81739,2619.6,2619.2,0.08388657]
[1730886651055,3.81758,2619.5,2619.2,0.08388657]
[1730886651214,0.763497,2619.4,2618.9,3.7925]
[1730886651419,3.81788,2619.3,2618.9,0.7925]
[1730886651859,7.63577,2619.3,2618.9,0.7925]
[1730886652016,3.81788,2619.3,2618.9,0.7925]
[1730886652217,7.63577,2619.3,2618.9,0.7925]
[1730886652441,3.81788,2619.3,2618.9,0.7925]
[1730886652683,3.81788,2619.3,2618.9,4.61088]
[1730886653051,4.61654,2619.7,2619.0,7.63638]
[1730886653251,3.81747,2619.6,2619.1,3.81801]
[1730886653452,3.81747,2619.6,2619.2,3.81794]
[1730886654273,3.81747,2619.6,2619.1,3.81808]
[1730886654831,3.81745,2619.6,2619.1,3.81808]
[1730886655227,7.63493,2619.6,2619.1,3.81808]
[1730886656162,3.81745,2619.6,2619.1,3.81808]
[1730886657658,3.81745,2619.6,2619.0,3.81813]
[1730886657865,7.63492,2619.6,2619.1,3.81809]
[1730886658029,3.81745,2619.6,2619.2,3.81794]
[1730886659341,0.7992,2619.7,2619.2,3.81794]
[1730886659570,0.3975786,2620.1,2619.2,3.81794]
[1730886659571,4.2143386,2620.1,2619.6,3.81734]
[1730886659773,0.3975786,2620.1,2619.9,3.81687]
[1730886659972,0.3975786,2620.1,2619.9,7.63366]
[1730886660181,0.778,2620.4,2619.9,7.63366]
[1730886660486,0.778,2620.4,2619.9,7.63367]
[1730886660487,4.59423,2620.4,2619.9,7.63367]
[1730886660686,4.59423,2620.4,2620.0,3.81672]
[1730886661061,5.435246,2620.4,2619.9,3.81682]
[1730886661261,5.435246,2620.4,2619.8,0.8157]
[1730886661469,5.435246,2620.4,2619.5,4.57491]
[1730886661470,1.619016,2620.4,2619.5,4.57491]
[1730886661676,3.81658,2620.2,2619.7,3.81713]
[1730886662077,3.81658,2620.2,2619.8,0.08341666]
[1730886662381,3.81642,2620.3,2619.8,3.81696]
[1730886662588,3.81642,2620.3,2619.9,0.0833944]
[1730886662787,0.778,2620.4,2619.9,0.0833944]
[1730886662994,3.81616,2620.5,2620.0,4.63307]
[1730886663176,4.656233,2620.5,2620.1,0.08333823]
[1730886664458,0.840073,2620.5,2620.1,0.08333823]
[1730886665179,3.81614,2620.5,2620.1,0.08333823]
[1730886665380,3.81614,2620.5,2620.1,3.89997823]
[1730886666250,3.81614,2620.5,2620.1,0.08333823]
[1730886666689,7.63228,2620.5,2620.1,0.08333823]
[1730886666995,3.81614,2620.5,2620.1,0.08333823]
[1730886667899,7.63229,2620.5,2620.1,0.08333823]
[1730886668069,0.8016,2620.2,2620.1,0.08333823]
[1730886668393,4.6181,2620.2,2619.5,4.6191]
[1730886668580,3.8168,2620.0,2619.5,0.8016]
[1730886668765,3.817,2619.9,2619.6,0.07749105]
[1730886668969,4.58038,2619.9,2619.6,0.07749105]
[1730886669158,0.76338,2619.9,2619.6,3.89479105]
[1730886669355,3.81694,2619.9,2619.6,0.07749105]
[1730886669571,3.8172,2619.8,2619.6,0.07749105]
[1730886669791,3.8172,2619.8,2619.3,3.759]
[1730886669995,3.8172,2619.8,2619.4,0.07753557]
[1730886671594,3.81732,2619.7,2619.4,0.07753557]
[1730886672302,3.81739,2619.6,2619.4,0.07753557]
[1730886672986,7.63489,2619.6,2619.4,0.07753557]
[1730886673181,3.81739,2619.6,2619.1,7.60339]
[1730886673385,3.81739,2619.6,2619.2,0.0775801]
[1730886674367,0.8268,2619.7,2619.3,6.81778]
[1730886674568,3.8169,2620.0,2619.4,3.97154838]
[1730886674886,4.61142,2619.5,2619.4,0.07753557]
[1730886675262,4.61142,2619.5,2618.4,3.81901]
[1730886675263,3.81842,2618.9,2618.5,0.7847]
[1730886675596,0.7858,2618.7,2618.6,0.07598977]
[1730886675760,3.81834,2619.0,2618.5,3.81886]
[1730886675962,3.81841,2618.9,2618.6,0.07622686]
[1730886677775,4.60394,2619.1,2618.6,0.07622686]
[1730886677978,3.81797,2619.2,2618.7,3.81861]
[1730886678187,3.81814,2619.1,2618.8,0.07618645]
[1730886678494,3.81797,2619.2,2618.5,0.7847]
[1730886678699,3.81835,2619.0,2618.9,0.07616417]
[1730886678906,3.81835,2619.0,2618.5,7.60366]
[1730886679088,3.81835,2619.0,2618.9,0.07627652]
[1730886679266,3.81795,2619.2,2618.5,7.60366]
[1730886679463,3.81795,2619.2,2618.9,0.07627652]
[1730886679664,3.81851,2618.9,2618.5,0.7847]
[1730886680379,3.81854,2618.8,2618.5,0.7847]
[1730886680906,3.81854,2618.8,2618.1,6.81944]
[1730886680907,3.81854,2618.8,2618.3,3.81926]
[1730886681694,7.63717,2618.8,2618.3,3.81926]
[1730886681892,3.81854,2618.8,2618.3,3.81926]
[1730886682087,7.63716,2618.8,2618.3,3.81926]
[1730886682509,3.8187,2618.7,2618.3,3.81926]
[1730886682707,0.7858,2618.9,2618.5,3.81896]
[1730886682874,7.63664,2619.0,2618.5,3.81896]
[1730886683492,3.81848,2618.9,2618.4,3.81912]
[1730886684003,3.81854,2618.8,2618.3,7.63844]
[1730886684166,3.81854,2618.8,2618.3,3.81918]
[1730886684365,3.81854,2618.8,2618.3,3.81917]
[1730886684772,0.79504548,2619.0,2618.4,0.07637724]
[1730886684990,3.81826,2619.0,2618.5,3.81887]
[1730886685612,4.64397,2619.2,2618.7,4.61932]
[1730886685787,3.81776,2619.4,2618.7,4.61932]
[1730886685973,4.274876,2619.4,2618.7,4.61931]
[1730886686302,3.81797,2619.2,2618.7,4.61931]
[1730886686696,8.092666,2619.4,2618.9,3.81838]
[1730886686893,8.092666,2619.4,2618.7,4.61931]
[1730886686894,3.81784,2619.3,2618.7,4.61931]
[1730886687105,3.81784,2619.3,2618.8,3.81852]
[1730886687508,3.81781,2619.3,2618.8,3.81852]
[1730886687676,3.81797,2619.2,2618.7,4.61931]
[1730886688071,3.81827,2619.0,2618.7,0.8007]
[1730886688916,3.81811,2619.1,2618.7,0.8007]
[1730886689111,3.81768,2619.4,2618.9,3.81832]
[1730886689413,3.81807,2619.2,2618.7,4.6193]
[1730886689705,3.81807,2619.2,2618.7,0.8007]
[1730886689873,3.81817,2619.1,2618.7,0.8007]
[1730886690310,4.199877,2619.2,2618.7,4.61929]
[1730886691013,3.81807,2619.2,2618.7,4.61929]
[1730886691180,3.81807,2619.2,2618.7,0.8007]
[1730886691531,3.81774,2619.4,2618.9,3.81836]
[1730886692101,3.81774,2619.4,2619.0,0.07646316]
[1730886693912,3.81774,2619.4,2619.1,0.8147]
[1730886694280,3.81774,2619.4,2619.2,0.07636037]
[1730886694517,3.81758,2619.5,2619.2,0.07636037]
[1730886695214,0.845674,2619.5,2619.2,0.07636037]
[1730886695432,5.16301,2619.3,2619.2,0.07636037]
[1730886695714,3.8186,2618.8,2618.5,0.7786]
[1730886696090,7.63724,2618.8,2618.6,0.07373628]
[1730886696294,3.8186,2618.8,2618.6,0.07373628]
[1730886696722,3.81835,2619.0,2618.6,0.07373628]
[1730886696933,3.81841,2618.9,2618.6,0.07373628]
[1730886697127,3.81811,2619.1,2618.7,3.81868]
[1730886697307,3.81811,2619.1,2618.6,3.89246628]
[1730886697502,3.81811,2619.1,2618.8,0.07369173]
[1730886697744,3.81811,2619.1,2618.7,3.892384]
[1730886697938,3.81811,2619.1,2618.9,0.07366945]
[1730886698242,3.81783,2619.3,2619.0,0.07364718]
[1730886698540,3.81806,2619.2,2619.0,0.07364718]
[1730886699216,3.8181,2619.1,2619.0,0.07364718]
[1730886699538,3.81831,2619.0,2618.7,0.7847]
[1730886699901,3.81831,2619.0,2618.8,0.07373913]
[1730886700203,3.81831,2619.0,2618.7,0.7847]
[1730886700404,3.81831,2619.0,2618.8,0.07373913]
[1730886700604,3.81831,2619.0,2618.7,0.7847]
[1730886700842,3.81831,2619.0,2618.8,0.07373913]
[1730886701025,3.81831,2619.0,2618.7,0.7847]
[1730886701228,3.81831,2619.0,2618.8,0.07373913]
[1730886701431,3.81831,2619.0,2618.7,0.7847]
[1730886701642,3.81831,2619.0,2618.8,0.07373913]
[1730886701818,3.81831,2619.0,2618.7,0.7847]
[1730886702018,3.81831,2619.0,2618.8,0.07373913]
[1730886702223,4.6583091,2619.0,2618.7,0.7847]
[1730886702435,4.6583091,2619.0,2618.8,0.07373913]
[1730886702761,4.6583091,2619.0,2618.7,0.7847]
[1730886702940,4.6583091,2619.0,2618.9,0.07371686]
[1730886703148,4.6583091,2619.0,2618.7,0.7847]
[1730886703344,4.6583091,2619.0,2618.9,0.07371686]
[1730886703656,4.6583091,2619.0,2618.9,0.07377926]
[1730886703817,1.6269991,2619.0,2618.4,3.7771]
[1730886704022,3.8186,2618.8,2618.5,0.07386839]
[1730886704625,3.8182,2619.1,2618.5,3.89274839]
[1730886704836,4.58851,2619.3,2618.7,3.81868]
[1730886705035,3.81791,2619.3,2618.9,3.81839]
[1730886705342,3.81791,2619.3,2618.8,0.90099074]
[1730886705343,3.81791,2619.3,2619.0,0.07374619]
[1730886705517,3.8181,2619.1,2619.0,0.07374619]
[1730886705718,3.8181,2619.1,2618.8,0.8272]
[1730886705918,3.8181,2619.1,2619.0,0.07375409]
[1730886706152,3.8181,2619.1,2618.8,0.8272]
[1730886706331,3.8181,2619.1,2619.0,0.07375409]
[1730886706540,3.81826,2619.0,2618.8,0.8272]
[1730886706921,4.6199041,2619.1,2618.8,0.8272]
[1730886707140,3.81812,2619.1,2618.9,0.07377637]
[1730886707449,4.199661,2619.3,2618.9,0.07377637]
[1730886707642,3.81787,2619.3,2618.9,0.07377637]
[1730886707962,3.81787,2619.3,2618.9,3.89215637]
[1730886708118,3.81773,2619.4,2618.9,3.89208637]
[1730886708457,3.81782,2619.3,2618.9,3.89208637]
[1730886709116,3.81688,2620.0,2619.4,0.7668]
[1730886709449,3.81658,2620.2,2619.6,3.81734]
[1730886709757,3.81658,2620.2,2619.3,3.0]
[1730886709758,3.81658,2620.2,2619.8,0.7668]
[1730886709912,3.81637,2620.3,2619.8,0.7668]
[1730886710117,4.59919,2620.4,2619.9,3.89036723]
[1730886710349,4.66992552,2620.6,2620.0,3.81677]
[1730886710560,3.81614,2620.5,2620.0,3.88998115]
[1730886711055,4.66989552,2620.6,2620.1,0.8265]
[1730886711350,3.81593,2620.6,2620.2,0.07315833]
[1730886711554,3.8161,2620.5,2620.2,0.07315833]
[1730886711762,3.81593,2620.6,2620.2,0.07315833]
[1730886713260,8.38887,2620.8,2620.2,0.07315833]
[1730886713558,5.411997,2620.8,2620.3,3.81631]
[1730886713764,3.81541,2621.0,2620.4,3.8162]
[1730886713930,3.81551,2620.9,2620.4,3.88923891]
[1730886714122,3.81541,2621.0,2620.4,3.88923891]
[1730886714322,3.81549,2620.9,2620.4,3.88923891]
[1730886714625,3.81541,2621.0,2620.4,3.88914891]
[1730886714826,0.458261,2620.9,2620.4,7.70526891]
[1730886715052,0.458261,2620.9,2620.5,3.81604]
[1730886715302,0.458261,2620.9,2620.6,0.84357732]
[1730886715427,3.8152,2621.1,2620.6,4.65941732]
[1730886716061,4.58508,2621.3,2620.6,8.47519732]
[1730886716263,4.655043,2621.2,2620.7,3.81575]
[1730886716439,4.655043,2621.2,2620.8,0.07297357]
[1730886716618,4.655043,2621.2,2620.6,8.40211]
[1730886716956,0.839993,2621.2,2620.8,3.81559]
[1730886717161,0.839993,2621.2,2620.8,7.63112]
[1730886717333,3.81484,2621.4,2620.9,3.88841134]
[1730886717660,4.64212,2621.5,2621.0,4.63774]
[1730886717832,3.81456,2621.6,2621.1,0.07290687]
[1730886718033,0.7875,2621.8,2621.2,3.81502]
[1730886718034,4.60173,2621.8,2621.2,3.81502]
[1730886718367,4.60173,2621.8,2621.3,0.07290183]
[1730886718652,0.460173,2621.7,2621.3,0.07290183]
[1730886718855,0.460173,2621.7,2621.2,3.81495]
[1730886719101,0.460173,2621.7,2621.3,0.07216648]
[1730886719377,3.81367,2622.2,2621.5,0.7777]
[1730886719538,3.81352,2622.3,2621.8,3.81417]
[1730886719737,4.62078,2622.4,2621.8,3.81417]
[1730886719960,4.62078,2622.4,2621.9,0.07211986]
[1730886720370,3.81309,2622.6,2622.0,4.59349]
[1730886720580,0.460459,2622.5,2622.0,4.66558763]
[1730886720735,3.8128,2622.8,2622.3,3.81343]
[1730886721166,3.8128,2622.8,2622.4,0.0719024]
[1730886721375,3.81309,2622.6,2622.4,0.0719024]
[1730886721747,3.8135,2622.3,2621.8,0.7923]
[1730886722063,3.81375,2622.1,2621.9,0.07200767]
[1730886722267,3.81375,2622.1,2621.5,4.6069]
[1730886722268,3.81388,2622.0,2621.5,0.7923]
[1730886722569,5.11953,2622.1,2622.0,0.07211939]
[1730886722810,3.81477,2621.4,2620.9,0.8255]
[1730886723140,3.81477,2621.4,2621.0,0.07232972]
[1730886723336,4.577702,2621.4,2621.0,0.07232972]
[1730886723532,0.762932,2621.4,2621.0,0.07232972]
[1730886723735,3.81417,2621.8,2621.2,3.81496]
[1730886723944,3.81454,2621.6,2621.1,3.81519]
[1730886724172,3.81454,2621.6,2621.3,0.072263]
[1730886724379,3.81464,2621.5,2621.2,0.07228524]
[1730886724541,7.62912,2621.6,2621.4,0.07224076]
[1730886724860,0.38135,2622.2,2621.1,0.8011]
[1730886725071,3.81321,2622.5,2621.9,0.8209]
[1730886725372,4.60214,2622.7,2621.9,0.8209]
[1730886725373,0.7892,2622.7,2621.9,0.8209]
[1730886725586,3.81318,2622.5,2621.9,0.8209]
[1730886725870,3.81331,2622.4,2621.9,4.63489]
[1730886726079,3.813,2622.6,2621.5,0.8206]
[1730886726375,3.81435,2621.7,2621.2,3.8194]
[1730886726581,3.81484,2621.4,2621.2,0.8194]
[1730886726790,3.81484,2621.4,2620.9,3.81538]
[1730886726791,3.81484,2621.4,2620.9,4.63478]
[1730886727152,3.81484,2621.4,2620.9,8.45017]
[1730886727680,0.7761,2621.7,2620.9,8.45017]
[1730886727681,0.7761,2621.7,2621.1,3.81505]
[1730886727886,1.235136,2621.7,2621.0,3.81526]
[1730886728100,3.81453,2621.6,2621.0,3.81526]
[1730886728380,3.81453,2621.6,2621.1,3.81517]
[1730886728581,3.81533,2621.0,2620.6,0.8328]
[1730886728878,0.381533,2620.9,2620.6,0.90911196]
[1730886729057,0.55,2621.6,2620.6,0.8328]
[1730886729058,3.81547,2621.0,2620.6,0.8328]
[1730886729468,0.8091,2621.4,2620.1,3.8166]
[1730886729699,3.8155,2620.9,2620.3,3.81624]
[1730886729979,3.8155,2620.9,2620.2,4.63537]
[1730886729980,3.81504,2621.2,2620.6,3.81584]
[1730886730311,4.578194,2621.1,2620.6,3.81581]
[1730886730499,3.81505,2621.2,2620.7,4.5764]
[1730886730643,0.8091,2621.4,2620.8,3.81562]
[1730886730968,3.81442,2621.7,2621.2,0.7917]
[1730886731146,3.8144,2621.7,2621.2,0.7917]
[1730886731342,3.8144,2621.7,2621.2,4.60674]
[1730886731789,7.62885,2621.7,2621.2,4.60674]
[1730886731960,4.577285,2621.7,2621.2,4.60674]
[1730886732286,0.762885,2621.7,2621.2,0.7917]
[1730886732468,3.81428,2621.8,2621.3,3.81482]
[1730886732652,0.8115,2622.1,2621.3,3.81476]
[1730886732854,3.81375,2622.1,2621.5,3.81449]
[1730886733089,3.0,2622.4,2621.7,3.81422]
[1730886733090,3.8133,2622.4,2621.7,3.81422]
[1730886733294,7.62651,2622.5,2621.9,3.814]
[1730886733582,4.7018104,2622.5,2622.1,0.7831]
[1730886733782,0.460194,2622.6,2622.1,4.59679]
[1730886734104,3.8129,2622.7,2622.1,4.59679]
[1730886734306,3.8129,2622.7,2622.1,4.59675]
[1730886734667,3.8129,2622.7,2622.2,3.88977444]
[1730886734869,3.81266,2622.9,2622.3,3.81331]
[1730886735071,4.575158,2622.9,2622.4,3.81329]
[1730886735273,3.81283,2622.8,2622.2,3.8135]
[1730886735678,4.575158,2622.9,2622.1,4.59673]
[1730886736005,3.81288,2622.7,2622.2,3.81357]
[1730886736300,3.81288,2622.7,2622.2,3.81347]
[1730886736703,3.81288,2622.7,2622.1,4.59673]
[1730886736704,4.6516818,2622.7,2622.1,4.59673]
[1730886736876,3.81314,2622.6,2622.1,4.59673]
[1730886737083,3.81314,2622.6,2622.2,0.06571334]
[1730886737281,3.81317,2622.5,2622.2,0.06571334]
[1730886737483,3.81286,2622.7,2622.2,0.06571334]
[1730886737670,3.81344,2622.3,2621.8,0.7518]
[1730886737870,3.81376,2622.1,2621.9,0.06579681]
[1730886738603,3.81388,2622.0,2621.9,0.06579681]
[1730886738911,3.81373,2622.1,2621.5,0.8061]
[1730886738912,3.81405,2621.9,2621.5,0.8061]
[1730886739280,3.81426,2621.8,2621.5,0.8061]
[1730886739486,3.81426,2621.8,2621.3,3.81489]
[1730886739487,3.81446,2621.6,2621.2,0.8094]
[1730886739685,3.81403,2621.9,2621.4,3.81472]
[1730886739884,3.81462,2621.5,2621.2,0.8094]
[1730886740275,7.62933,2621.5,2621.2,0.8094]
[1730886740475,7.62931,2621.5,2621.2,0.8094]
[1730886740675,3.81477,2621.4,2621.2,0.8094]
[1730886741108,3.81477,2621.4,2620.8,7.63105]
[1730886741380,3.81462,2621.5,2620.9,0.83950048]
[1730886741608,3.81462,2621.5,2621.0,3.81532]
[1730886742114,3.81476,2621.4,2620.9,4.65497048]
[1730886742320,7.62936,2621.5,2620.9,4.65497048]
[1730886743987,3.81526,2621.1,2620.6,4.58094]
[1730886744186,0.84091452,2621.5,2620.9,3.81535]
[1730886744500,3.81461,2621.5,2621.0,4.63845]
[1730886745017,3.81513,2621.2,2621.0,0.8232]
[1730886745227,3.81454,2621.6,2621.0,0.8232]
[1730886745427,3.81492,2621.3,2621.0,0.8232]
[1730886745610,4.276284,2621.6,2621.0,0.8232]
[1730886746079,4.276284,2621.6,2621.1,3.81512]
[1730886746284,3.81454,2621.6,2621.1,3.81512]
[1730886746683,3.81454,2621.6,2621.0,0.8232]
[1730886746889,3.81483,2621.4,2621.0,0.8232]
[1730886747992,3.81464,2621.5,2621.0,4.63852]
[1730886748192,3.81456,2621.6,2621.1,3.81515]
[1730886748398,4.61715,2621.8,2621.2,3.81499]
[1730886748609,3.81435,2621.7,2621.2,3.81499]
[1730886749135,3.81435,2621.7,2621.1,3.81515]
[1730886749136,3.81446,2621.6,2621.1,3.81515]
[1730886749342,3.81446,2621.6,2621.1,7.63026]
[1730886749639,3.81435,2621.7,2621.1,3.81511]
[1730886749813,3.81454,2621.6,2621.1,3.81511]
[1730886750194,3.81435,2621.7,2621.2,0.07629723]
[1730886750400,0.8143,2622.1,2621.2,3.81501]
[1730886750599,3.81435,2621.7,2621.2,3.81495]
[1730886750843,3.81435,2621.7,2621.2,7.62992]
[1730886751511,3.81435,2621.7,2621.2,7.62991]
[1730886751699,3.81435,2621.7,2621.0,4.63844]
[1730886751909,3.81402,2621.9,2621.0,4.63844]
[1730886752201,3.81491,2621.3,2621.1,0.0665167]
[1730886752903,3.81504,2621.2,2621.1,0.0665167]
[1730886753210,5.14434,2621.2,2621.1,0.0665167]
[1730886753530,3.81577,2620.8,2620.5,0.7895]
[1730886753710,3.8153,2621.1,2620.5,0.7895]
[1730886753911,3.8153,2621.1,2620.6,3.88050743]
[1730886754101,3.8153,2621.1,2620.7,3.81575]
[1730886754301,3.8153,2621.1,2620.8,0.06473116]
[1730886754543,3.8153,2621.1,2620.7,3.81575]
[1730886754700,3.81527,2621.1,2620.9,0.06479934]
[1730886754898,3.81527,2621.1,2620.6,3.8159]
[1730886755100,3.81527,2621.1,2620.7,0.06484384]
[1730886756442,3.81533,2621.0,2620.7,0.06484384]
[1730886756672,3.81562,2620.8,2620.7,0.06484384]
[1730886756857,3.81562,2620.8,2620.5,0.7895]
[1730886757023,3.81538,2621.0,2620.7,0.06476106]
[1730886757357,3.8155,2620.9,2620.8,0.06471679]
[1730886757866,3.8155,2620.9,2620.5,0.7895]
[1730886758325,3.8155,2620.9,2620.6,0.06481104]
[1730886759161,0.763028,2621.1,2620.6,0.06481104]
[1730886759162,3.81573,2620.8,2620.6,0.06481104]
[1730886759369,3.81577,2620.7,2620.6,0.06481104]
[1730886760465,3.81577,2620.7,2620.1,3.81656]
[1730886760466,3.81622,2620.4,2620.0,0.7674]
[1730886760826,3.81592,2620.6,2620.0,4.58419]
[1730886761061,3.81592,2620.6,2620.1,3.89287949]
[1730886761261,3.81571,2620.8,2620.2,3.81639]
[1730886761574,3.81571,2620.8,2620.1,3.89287949]
[1730886761737,3.81562,2620.9,2620.2,0.8027]
[1730886761942,3.81585,2620.7,2620.2,0.8027]
[1730886762341,3.81602,2620.6,2620.2,0.8027]
[1730886763743,3.81576,2620.8,2620.2,0.8027]
[1730886763943,3.81576,2620.8,2620.3,3.81635]
[1730886764169,3.81587,2620.7,2620.2,4.69551027]
[1730886764378,3.81587,2620.7,2620.2,4.61919]
[1730886765041,3.81602,2620.6,2620.2,0.8027]
[1730886765398,5.004132,2620.6,2620.0,0.8254]
[1730886765594,3.81621,2620.4,2620.0,0.8254]
[1730886765936,3.81659,2620.2,2619.7,4.58936]
[1730886766380,3.81659,2620.2,2619.8,3.81706]
[1730886766577,3.81659,2620.2,2619.7,0.7722]
[1730886766751,3.81659,2620.2,2619.7,4.58936]
[1730886767073,3.81659,2620.2,2619.7,0.7722]
[1730886767074,3.81666,2620.1,2619.7,0.7722]
[1730886767280,3.81666,2620.1,2619.8,0.06538067]
[1730886767662,3.81666,2620.1,2619.9,0.06560221]
[1730886767929,3.81679,2620.0,2619.7,0.7722]
[1730886768255,3.81624,2620.4,2619.7,0.84853719]
[1730886768458,3.81624,2620.4,2619.9,3.81686]
[1730886768683,3.81637,2620.3,2619.7,4.58942]
[1730886768980,3.81624,2620.4,2619.9,3.81683]
[1730886769741,3.81624,2620.4,2620.0,3.81674]
[1730886769944,3.81613,2620.5,2620.1,3.81663]
[1730886770138,3.81613,2620.5,2620.2,0.7575]
[1730886770539,3.81653,2620.2,2619.9,0.7551]
[1730886771181,3.81636,2620.3,2619.9,4.57196]
[1730886771559,3.81657,2620.2,2619.9,0.7551]
[1730886772297,3.81671,2620.1,2619.7,0.7833]
[1730886772874,3.81681,2620.0,2619.7,0.7833]
[1730886774099,3.81715,2619.8,2619.4,0.758]
[1730886774306,0.7631,2620.0,2619.5,3.81751]
[1730886774307,3.817,2619.9,2619.5,3.81751]
[1730886774885,7.63403,2619.9,2619.4,0.758]
[1730886775090,3.81732,2619.7,2619.4,0.758]
[1730886775454,3.81716,2619.8,2619.4,0.758]
[1730886775606,3.81729,2619.7,2619.4,0.758]
[1730886775779,3.81729,2619.7,2619.2,3.81793]
[1730886775979,3.81716,2619.8,2619.4,3.81764]
[1730886776310,3.81716,2619.8,2619.3,3.81768]
[1730886776509,3.81716,2619.8,2619.3,0.7662]
[1730886776705,3.81702,2619.9,2619.4,3.81759]
[1730886776906,3.81695,2619.9,2619.5,3.81743]
[1730886778220,3.81686,2620.0,2619.5,3.81743]
[1730886778517,3.81713,2619.8,2619.4,3.81766]
[1730886778723,3.81724,2619.7,2619.3,0.7662]
[1730886779017,3.81753,2619.5,2619.1,3.81797]
[1730886779441,4.60453,2619.7,2619.1,3.81797]
[1730886779607,3.81739,2619.6,2619.2,3.81787]
[1730886780014,3.81739,2619.6,2619.3,0.06590259]
[1730886780213,4.60443,2619.7,2619.3,0.06590259]
[1730886780442,3.81723,2619.7,2619.3,3.81778]
[1730886780625,3.81708,2619.8,2619.4,0.06586866]
[1730886780799,3.81697,2619.9,2619.5,0.7602]
[1730886780996,3.81709,2619.8,2619.5,0.7602]
[1730886781197,5.13423,2619.7,2619.6,0.06586941]
[1730886781440,3.8176,2619.5,2618.8,4.57873]
[1730886781648,3.81738,2619.6,2619.1,3.81805]
[1730886782138,3.81738,2619.6,2619.2,0.06416118]
[1730886783003,3.81775,2619.4,2619.2,0.06416118]
[1730886783232,3.81751,2619.6,2619.2,0.06416118]
[1730886783433,3.81781,2619.3,2618.8,4.57866]
[1730886783652,3.81764,2619.5,2619.0,3.81823]
[1730886784408,4.58432,2619.7,2619.0,3.81811]
[1730886784649,4.58432,2619.7,2619.2,3.81789]
[1730886785008,3.81744,2619.6,2619.2,3.81789]
[1730886785355,3.81744,2619.6,2619.1,3.81808]
[1730886785504,4.58432,2619.7,2619.2,3.81787]
[1730886785705,3.81703,2619.9,2619.3,4.61092]
[1730886785932,0.7734,2620.0,2619.3,0.7932]
[1730886786132,3.81717,2619.8,2619.3,4.61095]
[1730886787151,3.81746,2619.6,2619.3,0.7932]
[1730886787471,4.59032,2620.0,2619.4,3.81764]
[1730886787811,3.81696,2619.9,2619.4,3.81764]
[1730886788055,0.7734,2620.0,2619.4,3.89399021]
[1730886788244,3.81672,2620.1,2619.5,3.81743]
[1730886788447,3.8168,2620.0,2619.5,3.81743]
[1730886788746,0.7816,2620.2,2619.4,0.07634504]
[1730886789062,0.7816,2620.2,2619.7,3.81712]
[1730886789417,4.59812,2620.2,2619.5,4.58473]
[1730886789662,8.41474,2620.2,2619.5,8.40214]
[1730886789829,4.59812,2620.2,2619.6,3.81724]
[1730886791218,8.41473,2620.2,2619.6,3.81724]
[1730886791417,4.59812,2620.2,2619.5,4.58471]
[1730886791948,4.59812,2620.2,2619.6,3.81728]
[1730886792140,4.59812,2620.2,2619.5,4.58471]
[1730886792313,4.59812,2620.2,2619.6,3.81736]
[1730886792314,8.41475,2620.2,2619.6,3.81736]
[1730886792710,4.59812,2620.2,2619.6,3.81736]
[1730886793351,0.7816,2620.2,2619.5,4.58471]
[1730886793651,3.81688,2620.0,2619.5,0.7673]
[1730886793947,4.59819,2620.2,2619.6,3.81723]
[1730886794449,8.41477,2620.2,2619.6,3.81723]
[1730886794613,0.7816,2620.2,2619.5,0.7673]
[1730886794817,3.81687,2620.0,2619.5,0.7673]
[1730886795054,3.81696,2619.9,2619.5,0.7673]
[1730886795741,3.81709,2619.8,2619.5,0.7673]
[1730886796726,4.5982,2620.2,2619.5,0.7673]
[1730886796926,1.241413,2620.2,2619.5,0.7673]
[1730886797133,3.81674,2620.1,2619.6,3.88123923]
[1730886797929,3.81681,2620.0,2619.6,0.06386923]
[1730886799054,3.81674,2620.1,2619.6,0.06386923]
[1730886799256,7.63428,2619.8,2619.6,0.06386923]
[1730886799454,3.81708,2619.8,2619.6,0.06386923]